bitfinex-derivatives/quotes_ETHF0:USTF0_20251103
["timestamp","ask_amount","ask_price","bid_price","bid_amount"]
[1762168069369,1.37839716,3704.1,3704.0,3.2078]
[1762168070165,1.37839716,3704.1,3704.0,5.5373]
[1762168071071,1.37839716,3704.1,3704.0,3.2078]
[1762168071768,1.37839716,3704.1,3704.0,5.5373]
[1762168073363,1.37839716,3704.1,3704.0,3.2078]
[1762168073671,1.37839716,3704.1,3703.7,1.4425]
[1762168073672,2.10748716,3704.1,3703.4,3.2078]
[1762168073869,0.89234716,3704.0,3703.4,3.2078]
[1762168074064,1.21514,3704.1,3703.4,3.2078]
[1762168074065,0.83234716,3703.9,3703.4,3.2078]
[1762168074264,1.21514,3704.1,3703.4,3.2078]
[1762168074567,0.48612,3703.5,3703.4,5.5373]
[1762168075968,0.48612,3703.6,3703.5,2.3295]
[1762168076165,0.48611,3703.6,3703.5,2.3295]
[1762168076469,0.73301168,3703.6,3703.5,2.3295]
[1762168077559,0.48612,3703.5,3703.4,3.2078]
[1762168077758,0.73302168,3703.5,3703.4,3.2078]
[1762168078563,0.73302168,3703.5,3703.4,5.5373]
[1762168079365,0.48618,3703.1,3703.0,4.6503]
[1762168079668,0.73308168,3703.1,3703.0,6.9798]
[1762168080258,0.73208168,3703.1,3703.0,3.2078]
[1762168080669,0.73208168,3703.1,3703.0,5.5373]
[1762168081466,1.68e-06,3703.1,3703.0,5.5373]
[1762168081665,1.40276545,3703.8,3703.0,5.5373]
[1762168081666,0.48609,3703.8,3703.7,2.3295]
[1762168082976,1.40276545,3704.0,3703.8,1.4425]
[1762168083269,0.00311988,3704.2,3703.8,1.4425]
[1762168083270,0.48605,3704.1,3704.0,2.3295]
[1762168083470,0.48914988,3704.2,3704.1,2.3295]
[1762168084171,1.85855866,3705.5,3704.9,2.3295]
[1762168084362,0.48589,3705.3,3705.1,2.3295]
[1762168084667,0.48599,3704.6,3704.5,11.64]
[1762168084870,0.48599,3704.6,3703.8,1.4425]
[1762168084871,0.48601,3704.4,3704.1,2.3295]
[1762168085067,0.00205581,3704.4,3704.3,2.3295]
[1762168087269,0.00205581,3704.4,3704.0,3.2078]
[1762168087270,0.48598,3704.6,3704.5,2.3295]
[1762168087470,0.48598,3704.6,3704.5,17.1653]
[1762168087669,0.48498,3704.6,3704.5,17.1653]
[1762168088071,0.48596,3704.8,3704.7,2.3295]
[1762168088270,0.48828465,3704.8,3704.7,2.3295]
[1762168088466,0.48598,3704.6,3704.5,3.2078]
[1762168088867,0.48827465,3704.8,3704.7,2.3295]
[1762168089068,0.00232465,3704.8,3704.7,2.3295]
[1762168089480,3.2078,3705.9,3704.7,2.81546]
[1762168089675,3.2078,3705.9,3705.6,3.772]
[1762168089676,0.48583,3705.7,3705.6,3.772]
[1762168090077,0.48582,3705.8,3705.7,2.3295]
[1762168090381,0.48581,3705.9,3705.8,2.3295]
[1762168090578,1.11565344,3705.9,3705.8,2.33224624]
[1762168090881,0.4877857,3705.9,3705.8,2.33224624]
[1762168091179,0.0019757,3705.9,3705.8,2.33224624]
[1762168091378,0.4877857,3705.9,3705.8,2.33224624]
[1762168091579,0.4877857,3705.9,3705.8,0.00274624]
[1762168091777,6.0122857,3705.9,3705.8,0.00274624]
[1762168092085,6.63986554,3705.9,3705.8,0.00274624]
[1762168093678,6.89709557,3705.9,3705.8,0.00274624]
[1762168094473,6.89609557,3705.9,3705.8,0.00274624]
[1762168095083,6.89509557,3705.9,3705.8,0.00274624]
[1762168095879,6.89409557,3705.9,3705.8,0.00274624]
[1762168096079,1.37192674,3705.9,3705.8,0.00274624]
[1762168096473,0.7443469,3705.9,3705.8,2.38934624]
[1762168096684,0.7433469,3705.9,3705.8,2.38934624]
[1762168096985,1.37116468,3705.9,3705.8,0.00274624]
[1762168097184,3.0600469,3705.9,3705.8,0.00274624]
[1762168097380,3.0590469,3705.9,3705.8,0.00274624]
[1762168097579,0.7423469,3705.9,3705.8,0.00274624]
[1762168098080,0.7453712,3705.9,3705.8,2.38934624]
[1762168098280,1.21426,3706.8,3705.8,2.38934624]
[1762168098477,0.4857,3706.7,3706.6,2.3866]
[1762168099177,0.48581,3705.9,3705.8,0.00274624]
[1762168099378,0.48792693,3705.9,3705.8,0.00274624]
[1762168099680,0.48692693,3705.9,3705.8,2.38934624]
[1762168100477,0.48592693,3705.9,3705.8,2.38934624]
[1762168101078,0.00211693,3705.9,3705.8,2.38934624]
[1762168101281,0.48692693,3705.9,3705.8,2.38934624]
[1762168102284,0.00111693,3705.9,3705.8,2.38934624]
[1762168103585,0.48692693,3705.9,3705.8,2.38934624]
[1762168103979,2.80362693,3705.9,3705.2,3.2078]
[1762168104185,0.48589,3705.3,3705.2,3.2078]
[1762168104784,0.48589,3705.3,3705.2,5.5944]
[1762168104990,0.48595,3704.8,3704.7,3.2078]
[1762168105183,1.2868,3705.6,3704.9,2.3866]
[1762168105479,4.42347693,3705.9,3705.4,2.3866]
[1762168105480,0.00111693,3705.9,3705.4,2.3866]
[1762168106077,0.00011693,3705.9,3705.4,2.3866]
[1762168106389,0.00011693,3705.9,3705.8,1.9289]
[1762168106784,3.2078,3706.5,3705.7,11.53]
[1762168106785,3.20691693,3706.5,3706.4,1.9289]
[1762168107090,3.20691693,3706.5,3705.7,11.53]
[1762168107091,3.20591693,3706.5,3705.9,3.2078]
[1762168107482,3.2078,3706.9,3705.9,3.2078]
[1762168107683,1.84351615,3706.8,3705.9,3.2078]
[1762168107879,0.62761615,3706.7,3705.9,3.2078]
[1762168108091,3.2078,3706.1,3705.0,4.3967]
[1762168108289,0.62657887,3706.0,3705.0,4.3967]
[1762168108587,0.48591,3705.1,3705.0,6.3256]
[1762168108985,3.2078,3706.1,3705.6,1.2562]
[1762168109190,3.2078,3706.5,3705.6,1.2562]
[1762168109485,3.2068,3706.5,3705.4,3.2078]
[1762168109784,3.2058,3706.5,3705.4,3.2078]
[1762168109990,3.2048,3706.5,3705.4,3.2078]
[1762168110188,0.25741453,3706.4,3705.4,3.2078]
[1762168110393,1.2159,3706.2,3705.4,3.2078]
[1762168110585,0.25741453,3706.1,3705.4,3.2078]
[1762168110786,0.25641453,3706.0,3705.6,1.0824]
[1762168111081,3.2038,3706.5,3705.6,1.0824]
[1762168111587,3.2028,3706.5,3705.6,1.0824]
[1762168111889,3.2018,3706.5,3705.6,1.0824]
[1762168112190,0.48582,3705.8,3705.7,1.9289]
[1762168112491,0.48482,3705.8,3705.7,1.9289]
[1762168113089,0.48382,3705.8,3705.7,1.9289]
[1762168113394,0.48282,3705.8,3705.7,1.9289]
[1762168113784,0.48182,3705.8,3705.7,1.9289]
[1762168114786,3.2018,3706.5,3705.9,1.9289]
[1762168114993,3.68753,3706.5,3706.4,1.9289]
[1762168116490,0.48573,3706.5,3706.4,1.9289]
[1762168116791,0.00248108,3706.9,3706.6,1.9289]
[1762168116997,0.48571,3706.7,3706.6,1.9289]
[1762168117498,1.2143,3706.6,3705.9,3.2078]
[1762168117793,1.2169,3706.8,3706.0,1.9289]
[1762168117996,0.48577,3706.2,3706.1,1.9289]
[1762168119685,1.2143,3706.7,3705.9,14.6788]
[1762168119686,0.4858,3706.0,3705.9,5.1367]
[1762168120092,1.2143,3706.7,3706.1,1.9289]
[1762168120292,0.48578,3706.2,3706.1,1.9289]
[1762168120493,1.11913587,3706.2,3706.1,1.9289]
[1762168120900,0.48578,3706.2,3706.1,1.9289]
[1762168121789,0.48578,3706.2,3705.9,3.2078]
[1762168121988,0.48581,3705.9,3705.8,11.46]
[1762168123293,0.4858,3706.0,3705.8,13.4664]
[1762168123494,0.48581,3705.9,3705.8,13.4664]
[1762168123696,0.48585,3705.6,3705.5,5.4207]
[1762168123895,0.48585,3705.6,3705.5,18.8741]
[1762168124795,2.41855,3705.6,3705.5,16.8677]
[1762168125094,2.41855,3705.6,3705.5,5.4207]
[1762168126197,4.4714799,3705.6,3705.5,2.21056883]
[1762168126397,3.3071799,3705.6,3705.5,2.21056883]
[1762168126597,1.3744799,3705.6,3705.5,2.21056883]
[1762168126793,1.3744799,3705.6,3705.5,4.21696883]
[1762168126993,1.43975294,3706.4,3705.5,4.21696883]
[1762168126994,4.42216,3706.5,3705.8,2.0064]
[1762168127193,0.48577,3706.2,3706.1,2.0064]
[1762168127393,0.4858,3706.0,3705.9,3.2078]
[1762168127599,3.2078,3706.5,3705.9,5.2142]
[1762168127803,0.4858,3706.0,3705.9,5.2142]
[1762168129401,0.48576,3706.3,3706.2,2.0064]
[1762168129602,1.37474276,3706.3,3706.2,2.0064]
[1762168129902,0.4858,3706.0,3705.9,5.2142]
[1762168131196,0.48578,3706.1,3706.0,2.0064]
[1762168131998,0.48574,3706.4,3706.0,2.0064]
[1762168132202,0.48574,3706.4,3706.3,2.0064]
[1762168132504,1.37465026,3706.4,3706.3,2.0064]
[1762168133400,0.48574,3706.4,3706.3,2.0064]
[1762168133600,0.4858,3706.0,3705.9,3.2078]
[1762168133796,1.21432,3706.6,3705.9,5.2142]
[1762168134103,0.48579,3706.1,3706.0,2.0064]
[1762168134305,0.48577,3706.3,3706.2,3.1811]
[1762168135302,0.48816108,3706.9,3706.8,2.0064]
[1762168135504,1.37751745,3706.9,3706.8,2.0064]
[1762168135895,0.48574,3706.4,3706.3,2.0064]
[1762168136793,0.00248108,3706.9,3706.3,2.0064]
[1762168137000,0.88935627,3706.8,3706.7,2.0064]
[1762168137407,1.37504627,3706.8,3706.7,2.0064]
[1762168139005,0.48572,3706.6,3706.5,11.375]
[1762168139208,0.74111016,3706.6,3706.5,11.375]
[1762168140501,0.74111016,3706.6,3706.5,13.3814]
[1762168141508,0.48585,3705.6,3705.5,7.42476883]
[1762168141706,0.48585,3705.6,3705.5,8.53556883]
[1762168142904,1.2144,3706.3,3705.5,8.53556883]
[1762168143105,5.63646,3706.6,3706.1,2.0064]
[1762168143106,0.88938329,3706.2,3706.1,2.0064]
[1762168143312,0.74117869,3706.2,3706.1,2.0064]
[1762168143508,1.21425,3706.8,3706.2,2.0064]
[1762168143810,0.48575,3706.4,3706.3,2.0064]
[1762168144707,2.41846,3706.3,3706.2,11.346]
[1762168145009,2.82630555,3706.3,3705.9,3.2078]
[1762168145212,2.4185,3706.0,3705.9,14.5458]
[1762168145511,2.41855,3705.6,3705.5,2.21056883]
[1762168145710,6.51989981,3705.6,3705.5,2.21056883]
[1762168146616,1.6501,3706.0,3705.5,2.21056883]
[1762168146617,1.43975294,3706.7,3706.6,2.0064]
[1762168146912,0.4857,3706.7,3706.6,2.0064]
[1762168149318,0.48816108,3706.9,3706.8,3.1811]
[1762168149510,1.1643,3706.8,3706.2,1.1747]
[1762168149811,0.00248108,3706.9,3706.5,2.0064]
[1762168149812,0.48572,3706.6,3706.5,2.0064]
[1762168150015,0.48571,3706.7,3706.6,2.0064]
[1762168150711,0.48576,3706.4,3706.2,11.318]
[1762168151116,0.48576,3706.4,3706.3,2.0064]
[1762168151516,0.48572,3706.7,3706.6,2.0064]
[1762168151725,0.48571,3706.7,3706.5,3.2078]
[1762168151913,0.48572,3706.6,3706.5,3.2078]
[1762168152112,0.48569,3706.8,3706.7,1.9271]
[1762168153120,0.48572,3706.6,3706.5,3.2078]
[1762168153520,0.00248108,3706.9,3706.5,5.1349]
[1762168153819,0.48572,3706.6,3706.5,5.1349]
[1762168154114,0.00248108,3706.9,3706.6,1.9271]
[1762168154311,0.4857,3706.7,3706.6,1.9271]
[1762168154513,0.4857,3706.7,3706.5,3.2078]
[1762168154514,0.48569,3706.8,3706.5,3.2078]
[1762168154713,0.48572,3706.6,3706.5,14.5018]
[1762168155008,0.48572,3706.6,3706.5,16.4289]
[1762168155609,0.48572,3706.6,3706.5,3.2078]
[1762168156315,0.48572,3706.6,3706.5,5.1349]
[1762168157715,0.48571,3706.7,3706.6,1.9271]
[1762168157921,0.00248108,3706.9,3706.8,2.6552]
[1762168157922,0.48816108,3706.9,3706.8,2.6552]
[1762168158117,0.00248108,3706.9,3706.8,2.6552]
[1762168158324,3.2078,3707.7,3706.8,2.6552]
[1762168158620,0.86930139,3707.6,3707.5,1.9271]
[1762168158923,1.35489139,3707.6,3707.5,13.2041]
[1762168159424,1.35837297,3707.6,3707.5,13.20725071]
[1762168160216,0.48907158,3707.6,3707.5,13.20725071]
[1762168160619,2.36707158,3707.6,3707.5,0.00315071]
[1762168160917,0.48569,3706.8,3706.7,3.2078]
[1762168161120,0.48569,3706.8,3706.7,16.4009]
[1762168161915,0.48569,3706.8,3706.7,16.40432961]
[1762168162617,0.48566,3707.1,3706.8,0.8362]
[1762168162813,0.48566,3707.1,3707.0,1.9271]
[1762168164526,0.48568,3706.9,3706.8,0.8362]
[1762168164825,0.48568,3706.9,3706.8,2.7633]
[1762168165421,0.48569,3706.8,3706.7,14.47722961]
[1762168167229,0.48569,3706.8,3706.7,16.20777077]
[1762168167924,2.07049,3706.8,3706.7,14.50317077]
[1762168168520,3.07839,3706.8,3706.7,0.02937077]
[1762168168725,0.48576,3706.3,3706.2,13.4435]
[1762168169130,2.07056,3706.3,3706.2,13.4435]
[1762168169629,2.07056,3706.3,3706.2,13.44637035]
[1762168169825,13.27836,3706.3,3706.2,1.25230941]
[1762168170022,13.91373223,3706.3,3706.2,1.25230941]
[1762168170429,13.55496975,3706.3,3706.2,1.25230941]
[1762168172135,13.55493557,3706.3,3706.2,1.25230941]
[1762168173234,0.4859,3705.2,3705.1,11.228]
[1762168173431,2.07071,3705.1,3705.0,3.2078]
[1762168173626,2.3529968,3705.1,3705.0,3.2078]
[1762168174326,2.3529968,3705.1,3705.0,3.21065046]
[1762168174537,2.99773779,3705.1,3705.0,0.00285046]
[1762168175934,1.5848,3704.3,3703.8,4.2605]
[1762168176839,1.58801378,3704.3,3703.9,0.1952]
[1762168178437,0.48605,3704.1,3703.9,0.1952]
[1762168178630,0.48505,3704.1,3703.9,0.1952]
[1762168179639,0.48503,3704.2,3704.1,1.7046]
[1762168180335,0.48403,3704.2,3704.1,1.7046]
[1762168181039,0.48403,3704.2,3704.0,1.0527]
[1762168181340,0.00321378,3704.3,3703.9,0.1952]
[1762168181341,0.48606,3704.0,3703.9,1.8998]
[1762168182231,0.00321378,3704.3,3704.0,0.9434]
[1762168182543,0.00321378,3704.3,3704.2,4.8828]
[1762168182741,1.378e-05,3704.3,3704.2,4.8828]
[1762168183241,1.21463,3705.7,3705.3,1.675]
[1762168183242,0.48588,3705.4,3705.3,1.675]
[1762168183436,0.48586,3705.5,3705.3,1.675]
[1762168183641,0.48586,3705.5,3705.4,1.675]
[1762168184038,0.48683025,3705.5,3705.4,1.675]
[1762168184541,0.48783025,3705.5,3705.4,1.675]
[1762168184743,0.00197025,3705.5,3705.4,1.675]
[1762168185645,0.48591,3705.1,3705.0,0.9434]
[1762168185938,0.48591,3705.1,3705.0,2.6184]
[1762168186940,3.20977025,3705.5,3705.0,2.6184]
[1762168187142,0.48591,3705.1,3705.0,2.6184]
[1762168187342,1.7235,3704.4,3704.3,3.2078]
[1762168187644,2.20956,3704.0,3703.5,1.0527]
[1762168189544,1.7235,3703.5,3703.0,3.2078]
[1762168189836,0.48626,3702.5,3702.4,1.675]
[1762168190435,3.2078,3702.9,3702.4,1.675]
[1762168190634,0.00337401,3702.9,3702.8,1.675]
[1762168192338,0.48622,3702.8,3702.6,0.9434]
[1762168195550,0.48622,3702.8,3702.4,0.00508421]
[1762168195551,2.20975,3702.5,3702.4,0.00508421]
[1762168195939,2.48964615,3702.5,3702.4,0.00508421]
[1762168197547,2.48965412,3702.5,3702.4,0.00508421]
[1762168198051,0.00337401,3702.9,3702.8,1.675]
[1762168198541,0.48957401,3702.9,3702.8,1.675]
[1762168201051,0.00337401,3702.9,3702.8,1.675]
[1762168201352,0.4861,3703.8,3703.7,1.675]
[1762168201651,3.2078,3704.2,3703.7,1.675]
[1762168201652,0.48607,3704.0,3703.8,0.9434]
[1762168201848,0.48606,3704.0,3703.8,0.9434]
[1762168202050,0.48606,3704.0,3703.9,1.675]
[1762168202259,0.76995814,3704.0,3703.9,1.675]
[1762168204051,0.28389814,3704.0,3703.9,1.675]
[1762168204747,0.28389814,3704.0,3703.7,3.2078]
[1762168204748,0.48607,3703.9,3703.7,3.2078]
[1762168204956,0.48607,3703.9,3702.4,0.00508421]
[1762168204957,0.4862,3702.9,3702.8,3.2078]
[1762168205153,0.4862,3702.9,3702.4,0.00508421]
[1762168205154,0.48623,3702.7,3702.4,0.00508421]
[1762168205450,0.76670863,3702.7,3702.4,0.00508421]
[1762168206155,0.28047863,3702.7,3702.6,2.6184]
[1762168206352,0.48623,3702.7,3702.6,2.6184]
[1762168206556,0.76670863,3702.7,3702.6,2.6184]
[1762168206750,0.48626,3702.5,3702.4,0.00508421]
[1762168206948,0.76673863,3702.5,3702.4,0.00508421]
[1762168207252,3.14418362,3702.5,3702.4,0.00508421]
[1762168208748,6.35198362,3702.5,3702.4,0.00508421]
[1762168209153,4.62848362,3702.5,3702.4,0.00508421]
[1762168209453,4.62973842,3702.5,3702.4,0.00508421]
[1762168209656,4.62973842,3702.5,3702.4,0.00198421]
[1762168210650,6.35323842,3702.5,3702.4,0.00198421]
[1762168210849,0.48637,3701.6,3701.5,3.2078]
[1762168211049,0.28047863,3701.6,3701.5,4.8828]
[1762168211250,0.76684863,3701.6,3701.5,4.8828]
[1762168211759,0.76684863,3701.6,3701.5,3.20981981]
[1762168212151,0.48637,3701.6,3701.5,3.20981981]
[1762168212348,0.76645294,3701.6,3701.5,3.20981981]
[1762168212856,0.48632,3702.0,3701.9,1.5507]
[1762168213157,0.76638213,3702.0,3701.9,1.5507]
[1762168213656,0.28006213,3702.0,3701.9,1.5507]
[1762168213855,0.76638213,3702.0,3701.9,1.5507]
[1762168215350,0.28006213,3702.0,3701.8,1.5507]
[1762168215551,0.28006213,3701.9,3701.8,1.5507]
[1762168215860,0.76639213,3701.9,3701.8,1.5507]
[1762168216450,1.42331851,3701.9,3701.8,1.5507]
[1762168217358,3.2078,3702.7,3701.5,3.20981981]
[1762168217359,1.43975294,3702.9,3702.8,1.5507]
[1762168217555,1.21527,3703.7,3703.4,1.5507]
[1762168217754,0.48612,3703.5,3703.4,1.5507]
[1762168218356,3.21121951,3704.0,3703.5,1.5507]
[1762168218564,0.00341951,3704.0,3703.8,0.886]
[1762168218862,0.48947951,3704.0,3703.9,1.5507]
[1762168219362,0.00341951,3704.0,3703.9,1.5507]
[1762168221161,1.951e-05,3704.0,3703.9,1.5507]
[1762168222158,0.48607951,3704.0,3703.9,1.5507]
[1762168222359,0.48607951,3704.0,3703.8,0.886]
[1762168222558,0.4861,3703.7,3703.6,3.2078]
[1762168222761,0.4861,3703.7,3703.6,4.7585]
[1762168223058,1.951e-05,3704.0,3703.8,0.886]
[1762168223263,0.48607951,3704.0,3703.9,1.5507]
[1762168224065,0.48607951,3704.0,3703.8,0.886]
[1762168224269,0.4861,3703.7,3703.6,4.7585]
[1762168224568,1.951e-05,3704.0,3703.6,4.7585]
[1762168224764,1.951e-05,3704.0,3703.9,1.5507]
[1762168224963,1.951e-05,3704.0,3703.8,0.886]
[1762168226463,1.951e-05,3704.0,3703.9,1.4237]
[1762168226965,1.951e-05,3704.0,3703.8,0.886]
[1762168229465,0.48607,3703.9,3703.8,2.3097]
[1762168230070,0.48607951,3704.0,3703.9,1.4237]
[1762168230259,1.951e-05,3704.0,3703.9,1.4237]
[1762168230460,1.951e-05,3704.0,3703.8,0.886]
[1762168231863,1.951e-05,3704.0,3703.8,2.3097]
[1762168232064,0.48607951,3704.0,3703.9,1.4237]
[1762168232574,1.951e-05,3704.0,3703.9,1.4237]
[1762168232761,1.951e-05,3704.0,3703.8,0.886]
[1762168232963,0.48607,3703.9,3703.8,2.3097]
[1762168234368,1.951e-05,3704.0,3703.8,0.886]
[1762168234868,1.951e-05,3704.0,3703.8,2.3097]
[1762168235070,0.4861,3703.7,3703.6,3.2078]
[1762168235270,0.4861,3703.7,3703.6,4.6315]
[1762168235473,0.48607951,3704.0,3703.9,1.4237]
[1762168236866,1.951e-05,3704.0,3703.9,1.4237]
[1762168237067,1.951e-05,3704.0,3703.8,0.8098]
[1762168237668,1.951e-05,3704.0,3703.8,1.29589]
[1762168238067,0.48607951,3704.0,3703.8,0.8098]
[1762168238268,1.951e-05,3704.0,3703.8,0.8098]
[1762168238669,0.48607,3703.9,3703.8,0.8098]
[1762168238971,0.48607,3703.9,3703.8,2.2335]
[1762168240576,1.951e-05,3704.0,3703.8,0.8098]
[1762168240776,0.48607,3703.9,3703.8,2.2335]
[1762168240977,1.951e-05,3704.0,3703.8,2.2335]
[1762168241270,0.48607951,3704.0,3703.9,1.4237]
[1762168244173,1.951e-05,3704.0,3703.9,1.4237]
[1762168244375,0.48607951,3704.0,3703.9,1.4237]
[1762168245675,0.48607,3703.9,3703.8,2.2899]
[1762168245874,1.951e-05,3704.0,3703.9,1.4801]
[1762168246069,0.48607951,3704.0,3703.9,1.4801]
[1762168247684,1.951e-05,3704.0,3703.8,0.8098]
[1762168249575,1.951e-05,3704.0,3703.9,0.48607]
[1762168252683,1.951e-05,3704.0,3703.8,0.8098]
[1762168252880,1.951e-05,3704.0,3703.9,0.48607]
[1762168260076,1.951e-05,3704.0,3703.9,7.23567]
[1762168260687,5.33514,3705.6,3703.9,7.23567]
[1762168260893,0.27581029,3705.5,3705.4,1.4801]
[1762168261188,0.48586,3705.5,3705.4,15.5429]
[1762168261585,0.48585,3705.6,3705.5,2.3053]
[1762168261789,0.00246775,3705.6,3705.5,2.3072305]
[1762168262286,3.2078,3706.9,3705.6,1.4801]
[1762168262583,1.41526789,3706.8,3706.7,3.2078]
[1762168262783,2.89696789,3706.8,3706.7,3.2078]
[1762168263186,0.93238933,3706.8,3706.7,4.6879]
[1762168263391,0.27829541,3706.8,3706.7,4.6879]
[1762168263580,0.48568,3706.7,3706.6,10.848]
[1762168263780,2.24277457,3706.7,3706.6,10.848]
[1762168263979,2.89649544,3706.7,3706.6,10.848]
[1762168264184,1.4817,3706.3,3706.2,10.841]
[1762168264482,1.75699088,3706.3,3706.2,10.841]
[1762168264689,0.92875508,3706.3,3705.5,0.0019305]
[1762168264989,1.4817,3705.7,3705.6,10.839]
[1762168265188,1.4817,3705.6,3705.5,0.0019305]
[1762168265494,6.1037423,3705.6,3705.5,3.05e-05]
[1762168266592,1.96763,3704.8,3704.7,3.673]
[1762168266787,2.24281719,3704.8,3704.7,3.673]
[1762168267587,2.24281719,3704.8,3704.7,3.67601814]
[1762168268086,10.24281719,3704.8,3704.7,3.67601814]
[1762168271482,10.89541712,3704.8,3704.7,0.00301814]
[1762168271682,0.48601,3704.2,3704.1,3.2078]
[1762168271892,1.82831,3704.2,3704.1,3.2078]
[1762168272183,1.82831,3704.2,3703.8,10.8248]
[1762168272184,1.82835,3703.9,3703.8,0.0118]
[1762168272390,2.10350937,3703.9,3703.8,0.0118]
[1762168272888,2.10659453,3703.9,3703.8,0.01457025]
[1762168273090,1.82843,3703.3,3703.2,3.2078]
[1762168273291,1.3423,3702.9,3702.4,3.2078]
[1762168273489,1.82858,3702.1,3702.0,3.2078]
[1762168273890,0.48634,3701.7,3701.6,3.2078]
[1762168274089,3.2078,3702.4,3701.6,3.21030265]
[1762168274295,0.48621,3702.7,3702.0,3.9546]
[1762168274591,0.48622,3702.6,3702.4,3.2078]
[1762168274786,0.48621,3702.7,3702.4,3.2078]
[1762168274986,0.48622,3702.6,3702.4,3.2078]
[1762168275181,3.2078,3703.3,3702.4,3.2078]
[1762168275398,0.48622,3702.6,3702.4,3.2078]
[1762168275695,1.3423,3702.5,3702.4,3.2078]
[1762168276197,0.48628,3702.1,3702.0,3.2078]
[1762168276490,1.21548,3702.9,3701.6,4.57730265]
[1762168276491,0.48634,3701.7,3701.6,4.57730265]
[1762168276694,4.42342,3702.4,3701.6,4.57730265]
[1762168276695,0.48632,3701.9,3701.6,4.57730265]
[1762168276895,0.48631,3702.0,3701.6,4.57730265]
[1762168277097,1.21555,3702.6,3701.6,4.57730265]
[1762168277295,4.42328,3702.9,3701.6,4.57730265]
[1762168277296,0.4863,3702.0,3701.6,4.57730265]
[1762168277498,0.48631,3701.9,3701.6,4.57730265]
[1762168277699,0.48633,3701.8,3701.6,4.57730265]
[1762168279308,0.48631,3702.0,3701.6,4.57730265]
[1762168279495,0.48631,3701.9,3701.6,4.57730265]
[1762168279796,0.48633,3701.8,3701.7,1.367]
[1762168279990,1.21562,3702.4,3701.7,1.367]
[1762168280197,0.48631,3701.9,3701.7,1.367]
[1762168280701,2.43075,3703.2,3701.6,3.21030265]
[1762168280702,1.82864,3701.7,3701.6,3.21030265]
[1762168283197,0.48631,3701.9,3701.6,3.21030265]
[1762168283405,0.48632,3701.9,3701.6,3.21030265]
[1762168284207,3.2078,3702.5,3701.6,3.21030265]
[1762168284405,0.48634,3701.7,3701.6,4.57730265]
[1762168285206,0.48634,3701.7,3701.6,3.21030265]
[1762168285504,1.82864,3701.7,3701.6,3.21030265]
[1762168286603,0.48634,3701.7,3701.6,4.57730265]
[1762168287604,1.21562,3702.4,3701.6,4.57730265]
[1762168287804,0.48632,3701.9,3701.8,1.2014]
[1762168289506,4.42339,3702.5,3702.0,1.908]
[1762168289705,0.48628,3702.1,3702.0,1.908]
[1762168290207,0.48634,3701.7,3701.6,4.41170265]
[1762168291211,1.21572,3702.1,3701.7,1.2014]
[1762168291413,0.48632,3701.8,3701.7,1.2014]
[1762168292215,1.21572,3702.1,3701.6,3.21030265]
[1762168292216,0.48634,3701.7,3701.6,3.21030265]
[1762168292413,0.48628,3702.1,3702.0,1.9093]
[1762168292611,3.2078,3702.5,3702.0,1.9093]
[1762168292811,0.48628,3702.1,3702.0,1.9093]
[1762168296822,1.66028,3702.1,3702.0,0.7088]
[1762168297921,0.48634,3701.7,3701.6,4.41080265]
[1762168298919,0.48633,3701.8,3701.7,1.2005]
[1762168300022,1.66033,3701.8,3701.7,1.2005]
[1762168300226,0.48634,3701.7,3701.6,4.41080265]
[1762168301119,0.76155139,3701.7,3701.6,4.41080265]
[1762168301320,1.42653545,3701.7,3701.6,4.41080265]
[1762168301715,1.21565,3702.3,3701.6,4.41080265]
[1762168301716,3.2078,3702.5,3702.4,1.1677]
[1762168301920,0.48619,3702.8,3702.7,1.1677]
[1762168302122,1.15135718,3702.8,3702.7,1.1677]
[1762168302426,0.66516718,3702.8,3702.7,1.1677]
[1762168302829,1.15135718,3702.8,3702.7,1.1677]
[1762168303421,0.66516718,3702.8,3702.7,1.1677]
[1762168303617,3.07378866,3703.6,3703.5,1.8425]
[1762168303618,1.43975294,3703.6,3703.5,1.8425]
[1762168303928,0.48609,3703.6,3703.5,1.1677]
[1762168305622,0.48606,3703.8,3703.7,1.1677]
[1762168305824,0.00308516,3703.9,3703.7,1.1677]
[1762168306028,0.00308516,3703.9,3703.8,1.1677]
[1762168306029,0.48913516,3703.9,3703.8,1.1677]
[1762168309832,0.48609,3703.6,3703.5,0.6748]
[1762168310134,0.48609,3703.6,3703.5,1.8425]
[1762168310632,0.00308516,3703.9,3703.5,1.8425]
[1762168310838,0.48608,3703.7,3703.6,1.1677]
[1762168312533,0.48608,3703.7,3703.5,0.6748]
[1762168312534,0.00308516,3703.9,3703.8,1.1677]
[1762168312936,0.48913516,3703.9,3703.8,1.1677]
[1762168314042,0.00308516,3703.9,3703.8,1.1677]
[1762168314241,0.48913516,3703.9,3703.8,1.1677]
[1762168314836,0.48609,3703.6,3703.5,1.8425]
[1762168315042,0.48608,3703.7,3703.6,1.1677]
[1762168316246,0.48913516,3703.9,3703.8,1.1677]
[1762168317238,1.65763516,3703.9,3703.8,1.1677]
[1762168317440,0.48913516,3703.9,3703.8,1.1677]
[1762168317844,0.48615,3703.1,3703.0,5.0503]
[1762168318144,4.14089083,3703.9,3703.5,1.1677]
[1762168318145,3.21088516,3703.9,3703.5,1.1677]
[1762168318343,0.48607,3703.7,3703.6,1.1677]
[1762168318548,0.27096376,3703.7,3703.6,1.1677]
[1762168318748,0.75703376,3703.7,3703.6,1.1677]
[1762168319843,0.27096376,3703.7,3703.6,1.1677]
[1762168320047,0.75703376,3703.7,3703.6,1.1677]
[1762168320243,0.27096376,3703.7,3703.6,1.1677]
[1762168320444,0.00308516,3703.9,3703.5,0.6748]
[1762168320639,0.00308516,3703.9,3703.8,1.1677]
[1762168320846,0.00308516,3703.9,3703.8,4.3755]
[1762168321342,3.2078,3704.7,3703.8,4.3755]
[1762168321343,0.48597,3704.6,3704.5,1.6422]
[1762168321543,0.48595,3704.6,3704.5,1.6422]